bitfinex-derivatives/quotes_ETHF0:USTF0_20250712
["timestamp","ask_amount","ask_price","bid_price","bid_amount"]
[1752282584484,4.26067,2963.8,2963.7,2.11341063]
[1752282584678,4.26069,2963.7,2963.6,0.89901063]
[1752282584984,1.95844,2963.5,2963.4,2.11341063]
[1752282585182,22.59324,2963.5,2963.4,4.00041063]
[1752282585486,22.59324,2963.5,2963.3,0.89901063]
[1752282585487,4.26676,2963.4,2963.3,0.89901063]
[1752282585883,7.81838746,2963.4,2963.3,0.89901063]
[1752282586083,7.81838746,2963.4,2963.3,1.887]
[1752282586589,7.81838746,2963.4,2963.3,3.1014]
[1752282588188,4.83542746,2963.4,2963.3,4.0343]
[1752282588385,19.668,2963.5,2963.4,2.8199]
[1752282588592,19.668,2963.5,2963.4,4.0343]
[1752282589492,19.668,2963.5,2963.4,7.00935456]
[1752282590089,20.34264,2963.5,2963.4,7.00935456]
[1752282590684,20.9518,2963.5,2963.4,7.00935456]
[1752282591287,20.9518,2963.5,2963.4,7.90836519]
[1752282592397,19.668,2963.5,2963.4,7.90836519]
[1752282593299,20.34264,2963.5,2963.4,8.20993024]
[1752282593491,21.62644,2963.5,2963.4,8.20993024]
[1752282593797,21.9246,2963.5,2963.4,8.20993024]
[1752282594391,20.9518,2963.5,2963.4,8.20993024]
[1752282595497,21.62644,2963.5,2963.4,8.20993024]
[1752282595890,20.9518,2963.5,2963.4,8.20993024]
[1752282596386,20.9518,2963.5,2963.4,7.00935456]
[1752282596898,20.9518,2963.5,2963.4,6.67924071]
[1752282597996,21.62644,2963.5,2963.4,6.67924071]
[1752282598900,22.59924,2963.5,2963.4,6.67924071]
[1752282599094,22.59924,2963.5,2963.4,5.74634071]
[1752282599400,22.59924,2963.5,2963.4,6.67924071]
[1752282599795,22.59924,2963.5,2963.4,4.0343]
[1752282600599,27.48636746,2963.5,2963.4,3.1014]
[1752282600906,1.95848,2963.3,2963.2,3.94909679]
[1752282601201,4.26678,2963.3,2963.2,1.2144]
[1752282601398,5.51010746,2963.3,2963.2,4.0343]
[1752282601598,4.83542746,2963.3,2963.2,5.23522779]
[1752282601898,5.51010746,2963.3,2963.2,5.23522779]
[1752282602295,4.83542746,2963.3,2963.2,5.23522779]
[1752282602491,5.51010746,2963.3,2963.2,5.23522779]
[1752282603601,6.48290746,2963.3,2963.2,5.23522779]
[1752282604798,5.80822746,2963.3,2963.2,5.23522779]
[1752282604998,6.48290746,2963.3,2963.2,5.23522779]
[1752282605904,6.48290746,2963.3,2963.2,4.30232779]
[1752282606301,6.48290746,2963.3,2963.2,5.23522779]
[1752282609104,7.81840746,2963.3,2963.2,1.20092779]
[1752282610102,1.9585,2963.2,2963.1,1.20092779]
[1752282610308,4.2668,2963.2,2963.1,3.08792779]
[1752282610607,7.81842746,2963.2,2963.1,4.30232779]
[1752282610805,3.55162746,2963.2,2963.1,7.8801685]
[1752282611005,3.55162746,2963.2,2963.1,8.4810375]
[1752282611408,1.64747,2963.4,2963.2,0.9329]
[1752282611606,1.95847,2963.4,2963.3,3.34844082]
[1752282611808,5.51009746,2963.4,2963.3,5.23544082]
[1752282612105,6.48288746,2963.4,2963.3,4.0343]
[1752282613106,0.67466,2963.4,2963.3,4.0343]
[1752282613408,0.67466,2963.4,2963.3,5.83609679]
[1752282615311,0.67466,2963.4,2963.3,4.0343]
[1752282615505,20.3835,2963.8,2963.3,2.1473]
[1752282615709,20.3835,2963.8,2963.1,2.64494071]
[1752282615710,21.05807,2963.8,2963.7,6.70364071]
[1752282615907,21.05807,2963.8,2963.7,7.90562013]
[1752282616414,20.07757,2963.8,2963.7,7.90562013]
[1752282616616,20.07757,2963.8,2963.7,6.70364071]
[1752282616816,22.26057,2963.8,2963.7,6.70364071]
[1752282617907,22.26057,2963.8,2963.7,4.0587]
[1752282618115,4.12481,2963.6,2963.5,4.87936913]
[1752282618308,2.183,2963.6,2963.5,4.87936913]
[1752282618509,2.183,2963.6,2963.5,5.86166913]
[1752282618709,2.85761,2963.6,2963.5,5.86166913]
[1752282619014,2.85761,2963.6,2963.5,4.87936913]
[1752282619318,19.403,2963.8,2963.6,1.8076]
[1752282619614,23.52777,2963.8,2963.7,6.92285914]
[1752282619822,22.26057,2963.8,2963.7,7.90515914]
[1752282621117,22.26057,2963.8,2963.7,5.26021843]
[1752282624217,25.81219746,2963.8,2963.7,5.26021843]
[1752282624914,25.13762746,2963.8,2963.7,5.26021843]
[1752282625117,25.81219746,2963.8,2963.7,5.26021843]
[1752282630124,27.07939746,2963.8,2963.7,4.27791843]
[1752282630726,25.81219746,2963.8,2963.7,5.26021843]
[1752282632826,25.81219746,2963.8,2963.7,6.58258678]
[1752282633122,22.95462746,2963.8,2963.7,6.58258678]
[1752282633323,22.95462746,2963.8,2963.7,6.28147596]
[1752282633324,19.403,2963.8,2963.7,6.28147596]
[1752282633725,19.403,2963.8,2963.7,5.38106835]
[1752282634021,1.2672,2964.4,2963.7,5.38106835]
[1752282634022,2.41470414,2964.7,2964.0,1.8076]
[1752282634229,6.6406916,2964.7,2964.6,3.57346835]
[1752282634527,16.03398746,2964.7,2964.6,5.38106835]
[1752282634920,16.03398746,2964.7,2964.6,4.0587]
[1752282635220,17.30118746,2964.7,2964.6,1.8076]
[1752282635422,4.12463,2964.4,2964.3,3.0764]
[1752282635616,13.74763,2964.4,2964.3,3.0764]
[1752282635822,17.29925746,2964.4,2964.3,3.0764]
[1752282637628,17.29925746,2964.4,2964.3,4.0587]
[1752282640730,17.29925746,2964.4,2963.5,0.67462]
[1752282640731,3.1442,2964.1,2964.0,1.20151843]
[1752282640921,4.12472,2964.0,2963.9,3.0764]
[1752282641124,13.72272,2964.0,2963.9,3.0764]
[1752282641323,17.27434746,2964.0,2963.9,3.0764]
[1752282641529,16.00714746,2964.0,2963.9,4.0587]
[1752282641926,4.22614746,2964.0,2963.9,4.0587]
[1752282642128,16.00814746,2964.0,2963.9,4.0587]
[1752282642833,16.00814746,2964.0,2963.9,4.95890321]
[1752282643235,16.00814746,2964.0,2963.9,4.0587]
[1752282644132,2.85752,2964.0,2963.9,4.0587]
[1752282646828,2.85752,2964.0,2963.9,5.26021843]
[1752282647631,2.2344,2964.3,2964.2,1.1779]
[1752282647832,6.46047746,2964.3,2964.2,3.9089]
[1752282648135,6.46047746,2964.3,2964.2,4.80951489]
[1752282649239,6.46047746,2964.3,2964.2,3.83461489]
[1752282649533,6.46047746,2964.3,2964.2,4.80951489]
[1752282651535,6.46047746,2964.3,2964.2,3.9089]
[1752282651735,2.42438311,2965.9,2965.2,2.934]
[1752282651932,3.9837,2965.3,2965.2,3.9089]
[1752282652239,4.65793,2965.3,2965.2,3.9089]
[1752282652729,8.20955746,2965.3,2965.2,1.1779]
[1752282652942,2.90869,2965.1,2965.0,2.1528]
[1752282653129,0.67424,2965.3,2965.1,2.731]
[1752282653332,1.64024,2965.3,2965.2,3.9089]
[1752282653536,4.65794,2965.3,2965.2,3.9089]
[1752282653732,4.65794,2965.3,2965.2,4.76804484]
[1752282654126,0.67421,2965.4,2965.2,7.41120229]
[1752282654331,1.94261,2965.4,2965.3,3.9089]
[1752282654537,1.94261,2965.4,2965.3,5.66750119]
[1752282655034,1.94261,2965.4,2965.3,6.98848159]
[1752282655437,1.94261,2965.4,2965.3,6.08835143]
[1752282655627,8.20953746,2965.4,2965.3,0.85847103]
[1752282656039,17.78753746,2965.4,2965.3,0.85847103]
[1752282656633,8.20953746,2965.4,2965.3,0.85847103]
[1752282656833,17.78553746,2965.4,2965.3,0.85847103]
[1752282657340,8.20953746,2965.4,2965.3,0.85847103]
[1752282657528,17.78353746,2965.4,2965.3,0.85847103]
[1752282658839,17.78253746,2965.4,2965.3,0.85847103]
[1752282662434,4.65799,2965.0,2964.9,0.90013016]
[1752282662734,4.65799,2965.0,2964.7,2.95761843]
[1752282662735,4.65802,2964.9,2964.8,0.90013016]
[1752282662933,1.94274,2964.8,2964.7,3.83413016]
[1752282663135,1.94274,2964.8,2964.7,4.80903016]
[1752282663136,4.65804,2964.8,2964.7,4.80903016]
[1752282663337,1.94276,2964.7,2964.6,4.80903016]
[1752282663533,4.65806,2964.7,2964.6,4.80903016]
[1752282663837,8.20968746,2964.7,2964.6,4.80903016]
[1752282664438,8.20968746,2964.7,2964.6,3.9089]
[1752282665345,8.20968746,2964.7,2964.6,2.934]
[1752282665646,8.20968746,2964.7,2964.6,3.9089]
[1752282667443,4.65813,2964.4,2964.3,4.80903016]
[1752282668037,4.65813,2964.4,2964.3,3.9089]
[1752282668239,4.65813,2964.4,2964.3,4.80903016]
[1752282668640,2.90883,2964.4,2964.3,4.80903016]
[1752282668947,1.94283,2964.4,2964.3,4.80903016]
[1752282670942,2.90883,2964.4,2964.3,4.80903016]
[1752282671341,4.65813,2964.4,2964.3,4.80903016]
[1752282672043,1.94283,2964.4,2964.3,4.80903016]
[1752282672543,0.67437,2964.7,2964.6,1.1779]
[1752282672744,0.67437,2964.7,2964.6,3.9089]
[1752282672945,6.5853,2965.1,2964.6,1.1779]
[1752282673141,5.55534,2965.8,2965.0,4.0767]
[1752282673345,5.55534,2965.8,2963.5,0.26265178]
[1752282673346,1.2684,2965.6,2965.5,4.0767]
[1752282673644,4.70166,2965.6,2965.5,3.1018]
[1752282674040,2.90856,2965.6,2965.5,4.0767]
[1752282674249,1.3105,2965.7,2965.6,1.2631]
[1752282674437,2.7591,2966.0,2965.1,4.1619]
[1752282674438,4.0696,2965.2,2965.1,4.1619]
[1752282674646,4.74385,2965.2,2965.1,5.01840727]
[1752282674946,8.29547746,2965.2,2965.1,5.01840727]
[1752282675343,8.29547746,2965.2,2965.1,5.9158791]
[1752282675745,8.29547746,2965.2,2965.1,5.01840727]
[1752282675943,8.29547746,2965.2,2965.1,0.85650727]
[1752282676745,8.29547746,2965.2,2965.1,2.11960727]
[1752282677642,1.98475,2965.2,2965.1,4.98390727]
[1752282677848,1.3105,2965.2,2965.1,4.98390727]
[1752282678445,3.37912,2965.4,2965.1,4.98390727]
[1752282678646,1.3105,2965.3,2965.2,4.98390727]
[1752282678847,1.98473,2965.3,2965.2,6.3049677]
[1752282679146,1.3105,2965.3,2965.2,6.3049677]
[1752282680650,0.67417,2965.6,2965.5,1.2631]
[1752282680849,0.67417,2965.6,2965.5,4.98390727]
[1752282681648,1.98467,2965.6,2965.5,4.98390727]
[1752282681854,1.3105,2965.6,2965.5,4.98390727]
[1752282682052,1.98466,2965.6,2965.5,4.98390727]
[1752282682252,1.3105,2965.6,2965.5,4.98390727]
[1752282682850,1.98466,2965.6,2965.5,4.98390727]
[1752282683446,4.68956,2965.6,2965.5,4.98390727]
[1752282684047,8.24118746,2965.6,2965.5,0.85650727]
[1752282684251,8.24118746,2965.6,2965.5,2.11960727]
[1752282684454,8.24118746,2965.6,2965.5,4.98390727]
[1752282684652,9.56224789,2965.6,2965.5,0.85650727]
[1752282685754,8.24118746,2965.6,2965.5,4.04350727]
[1752282685966,8.24118746,2965.6,2965.5,4.98390727]
[1752282686455,8.24118746,2965.6,2965.5,0.85650727]
[1752282686959,8.24118746,2965.6,2965.5,4.04350727]
[1752282687256,17.74218746,2965.6,2965.5,4.98390727]
[1752282687456,14.18956,2965.6,2965.5,4.98390727]
[1752282687657,4.68956,2965.6,2965.5,4.98390727]
[1752282688259,9.56224789,2965.6,2965.5,0.85650727]
[1752282690366,9.56224789,2965.6,2965.5,7.27e-06]
[1752282690563,14.56224789,2965.6,2965.5,7.27e-06]
[1752282690762,14.56224789,2965.6,2965.0,0.89747183]
[1752282690763,4.68967,2965.1,2965.0,0.89747183]
[1752282691066,4.68969,2965.0,2964.9,3.10097183]
[1752282691266,4.68969,2965.0,2964.9,2.16057183]
[1752282691467,4.68969,2965.0,2964.9,4.1274]
[1752282691664,4.68969,2965.0,2964.9,5.02487183]
[1752282691865,8.24131746,2965.0,2964.9,0.89747183]
[1752282692865,0.67436,2964.7,2964.6,4.06581843]
[1752282693072,4.68976,2964.7,2964.6,5.32891843]
[1752282693268,2.7049,2965.1,2964.6,3.78044199]
[1752282693475,1.3105,2965.1,2965.0,4.1274]
[1752282693666,0.67427,2965.1,2965.0,4.1274]
[1752282696472,18.984,2965.2,2965.1,2.8643]
[1752282696774,18.984,2965.2,2965.1,5.44846043]
[1752282696974,19.65825,2965.2,2965.1,5.44846043]
[1752282697472,23.67365,2965.2,2965.1,4.1274]
[1752282697668,4.68967,2965.1,2965.0,0.89723465]
[1752282697970,4.68969,2965.0,2964.9,0.89723465]
[1752282698175,4.68969,2965.0,2964.9,5.02463465]
[1752282698369,8.24131746,2965.0,2964.9,5.02463465]
[1752282698771,8.24131746,2965.0,2964.9,2.16033465]
[1752282698972,8.24131746,2965.0,2964.9,0.89723465]
[1752282699373,8.24131746,2965.0,2964.9,2.16033465]
[1752282699578,8.24131746,2965.0,2964.9,0.89723465]
[1752282699782,8.24131746,2965.0,2964.9,2.16033465]
[1752282699977,8.24131746,2965.0,2964.9,5.02463465]
[1752282700380,8.24131746,2965.0,2964.9,0.89723465]
[1752282700983,8.24131746,2965.0,2964.9,5.02463465]
[1752282701277,17.71431746,2965.0,2964.9,5.02463465]
[1752282701480,17.71431746,2965.0,2964.9,4.1274]
[1752282701681,17.71431746,2965.0,2964.9,3.187]
[1752282701979,4.68974,2964.8,2964.7,5.32368156]
[1752282702577,4.68976,2964.7,2964.6,1.19628156]
[1752282702881,4.68976,2964.7,2964.6,0.85411809]
[1752282702882,6.01082043,2964.7,2964.6,0.85411809]
[1752282703178,9.56244789,2964.7,2964.6,0.85411809]
[1752282703574,8.24138746,2964.7,2964.6,4.92231809]
[1752282704779,8.24138746,2964.7,2964.6,6.11859965]
[1752282704977,0.67436,2964.7,2964.6,6.11859965]
[1752282705282,9.60634789,2964.7,2964.6,2.05039965]
[1752282706174,9.60634789,2964.7,2964.6,0.85411809]
[1752282707079,9.60634789,2964.7,2964.6,0.15666809]
[1752282707678,9.60634789,2964.7,2964.6,8.09e-06]
[1752282707880,9.60634789,2964.7,2964.6,7.72e-06]
[1752282708882,9.60634789,2964.7,2964.3,1.19628156]
[1752282708883,2.82363,2964.4,2964.3,3.35218156]
[1752282709082,23.70473,2964.4,2964.3,5.21688156]
[1752282709281,27.25635746,2964.4,2964.3,1.19628156]
[1752282711477,27.25635746,2964.4,2964.3,2.40088156]
[1752282712082,23.70473,2964.4,2964.3,5.21688156]
[1752282713080,23.70473,2964.4,2964.3,4.0206]
[1752282721489,19.62443,2964.4,2964.3,4.0206]
[1752282721689,20.84083,2964.4,2964.3,4.0206]
[1752282721984,21.77363,2964.4,2964.3,4.0206]
[1752282722186,23.70473,2964.4,2964.3,4.0206]
[1752282722582,18.95,2964.4,2964.3,4.0206]
[1752282722784,18.95,2964.4,2964.3,5.21688156]
[1752282723487,18.95,2964.4,2964.3,4.0206]
[1752282724785,19.62443,2964.4,2964.3,4.0206]
[1752282724981,21.77363,2964.4,2964.3,4.0206]
[1752282725585,23.70473,2964.4,2964.3,4.0206]
[1752282726184,23.70473,2964.4,2964.2,1.19628156]
[1752282726185,1.2164,2964.3,2964.2,1.2046]
[1752282726482,4.75475,2964.3,2964.2,4.0206]
[1752282726687,0.67445,2964.3,2964.2,4.0206]
[1752282729290,2.82356,2964.7,2964.6,2.1559]
[1752282729487,12.29756,2964.7,2964.6,4.0206]
[1752282729786,14.22866,2964.7,2964.6,4.0206]
[1752282730590,4.75473,2964.4,2964.3,4.0206]
[1752282731385,11.36383,2964.4,2964.3,4.0206]
[1752282731589,9.473,2964.4,2964.3,4.0206]
[1752282731883,10.14741,2964.5,2964.4,2.1559]
[1752282732085,10.14741,2964.5,2964.4,4.0206]
[1752282732485,0.67441,2964.5,2964.4,4.0206]
[1752282733091,1.89081,2964.5,2964.4,4.0206]
[1752282733290,4.67921,2964.5,2964.4,5.21688156]
[1752282734293,10.1474,2964.6,2964.5,3.9517]
[1752282734687,9.473,2964.7,2964.5,1.2495]
[1752282734890,11.39706,2964.7,2964.6,3.9517]
[1752282736490,12.30436,2964.7,2964.6,3.9517]
[1752282736688,14.15996,2964.7,2964.6,3.9517]
[1752282740094,1.2497,2964.7,2964.6,5.27276043]
[1752282740301,1.92402,2964.9,2964.8,3.9722]
[1752282740611,4.45892746,2965.3,2964.8,5.29326043]
[1752282740795,1.92399,2965.1,2964.9,2.7227]
[1752282740995,20.3393,2965.4,2965.0,5.29326043]
[1752282741197,0.67424,2965.3,2965.2,2.57056043]
[1752282741401,1.92394,2965.3,2965.2,4.32146043]
[1752282741799,1.92394,2965.3,2965.2,5.29326043]
[1752282741996,1.92394,2965.3,2965.2,3.9722]
[1752282742196,1.2497,2965.3,2965.2,3.9722]
[1752282742396,1.92393,2965.3,2965.2,3.9722]
[1752282743999,1.2497,2965.3,2965.2,3.9722]
[1752282744298,29.57621,2965.4,2965.3,3.9722]
[1752282744496,30.82591,2965.4,2965.3,3.9722]
[1752282745296,19.432,2965.4,2965.3,3.9722]
[1752282745503,4.68687,2965.1,2965.0,3.9722]
[1752282745703,0.67427,2965.1,2965.0,3.9722]
[1752282745893,0.67424,2965.3,2965.1,2.7227]
[1752282746197,20.1062,2965.4,2965.3,0.9718]
[1752282746402,9.47,2965.5,2965.3,0.9718]
[1752282746403,9.47,2965.5,2965.3,1.2495]
[1752282746602,10.14419,2965.5,2965.4,5.29326043]
[1752282746802,0.67419,2965.5,2965.4,5.29326043]
[1752282747003,1.92389,2965.5,2965.4,3.9722]
[1752282747302,4.68679,2965.5,2965.4,3.9722]
[1752282747703,3.77955,2965.2,2965.1,5.16848156]
[1752282747900,4.68685,2965.2,2965.1,3.9722]
[1752282748099,8.23847746,2965.2,2965.1,3.9722]
[1752282748500,17.70747746,2965.2,2965.1,2.44578156]
[1752282748700,4.68687,2965.1,2965.0,1.19628156]
[1752282748907,6.00793043,2965.1,2965.0,1.19628156]
[1752282749209,1.92399,2965.0,2964.9,1.19628156]
[1752282749403,3.77962,2964.9,2964.8,1.19628156]
[1752282749602,4.68692,2964.9,2964.8,1.19628156]
[1752282749896,8.23854746,2964.9,2964.8,1.19628156]
[1752282750096,0.67432,2964.9,2964.8,5.16848156]
[1752282750299,1.92402,2964.9,2964.8,5.16848156]
[1752282750505,1.92402,2964.9,2964.8,3.9722]
[1752282750907,2.83132,2964.9,2964.8,3.9722]
[1752282752106,0.6743,2965.0,2964.8,3.9722]
[1752282752304,0.6743,2965.0,2964.9,5.29326043]
[1752282752800,0.6743,2965.0,2964.9,3.9722]
[1752282753002,0.67427,2965.1,2965.0,2.7227]
[1752282753201,0.67427,2965.1,2965.0,3.9722]
[1752282754110,1.92397,2965.1,2965.0,3.9722]
[1752282754802,4.68687,2965.1,2965.0,3.9722]
[1752282755304,8.23849746,2965.1,2965.0,3.9722]
[1752282755611,4.68694,2964.8,2964.7,2.44578156]
[1752282755803,1.92404,2964.8,2964.7,2.44578156]
[1752282756008,1.92404,2964.8,2964.7,5.16848156]
[1752282758104,0.9073,2965.3,2964.7,2.44578156]
[1752282758309,2.157,2965.3,2965.2,3.9722]
[1752282758508,11.624,2965.3,2965.2,3.9722]
[1752282758714,12.29823,2965.3,2965.2,3.9722]
[1752282758907,14.15383,2965.3,2965.2,3.9722]
[1752282760513,4.68683,2965.3,2965.2,3.9722]
[1752282762608,2.83129,2965.0,2964.9,5.16848156]
[1752282763010,2.83129,2965.0,2964.9,1.19628156]
[1752282763227,8.23621746,2965.0,2964.9,3.9645]
[1752282764913,1.86544,2964.8,2964.7,2.45138156]
[1752282765115,4.62604,2964.8,2964.7,5.16638156]
[1752282765416,8.17766746,2964.8,2964.7,1.19628156]
[1752282765613,2.78096,2964.7,2964.6,2.10678156]
[1752282765813,4.63426,2964.7,2964.6,2.10678156]
[1752282766418,4.63426,2964.7,2964.6,3.36188156]
[1752282766615,4.63426,2964.7,2964.6,5.10508156]
[1752282767116,4.63426,2964.7,2964.6,1.19628156]
[1752282769222,8.18588746,2964.7,2964.6,1.19628156]
[1752282769619,8.18588746,2964.7,2964.6,4.19458156]
[1752282769822,8.18588746,2964.7,2964.6,2.9983]
[1752282770423,8.18588746,2964.7,2964.6,3.9088]
[1752282770818,7.27038746,2964.7,2964.6,3.9088]
[1752282771019,17.65088746,2964.7,2964.6,3.9088]
[1752282773020,1.86549,2964.6,2964.5,2.45138156]
[1752282773227,4.63429,2964.6,2964.5,1.19628156]
[1752282773426,9.50800873,2964.6,2964.5,0.90199877]
[1752282774022,1.86555,2964.3,2964.2,4.81079877]
[1752282774221,4.63435,2964.3,2964.2,4.81079877]
[1752282775020,0.67448,2964.2,2964.1,0.90199877]
[1752282775221,4.63438,2964.2,2964.1,0.90199877]
[1752282775529,8.18600746,2964.2,2964.1,3.9088]
[1752282778229,8.18600746,2964.2,2964.1,4.81079877]
[1752282778525,8.18600746,2964.2,2964.1,3.9088]
[1752282781134,11.15096,2964.7,2964.4,3.9088]
[1752282781135,2.78102,2964.5,2964.4,3.9088]
[1752282781435,4.63432,2964.5,2964.4,3.9088]
[1752282782430,0.6744,2964.6,2964.4,3.9088]
[1752282782631,1.8655,2964.6,2964.5,3.9088]
[1752282782936,2.781,2964.6,2964.5,3.9088]
[1752282783440,4.6343,2964.6,2964.5,3.9088]
[1752282784143,3.9599,2964.6,2964.5,3.9088]
[1752282784348,4.63429,2964.6,2964.5,3.9088]
[1752282784750,9.465,2964.7,2964.5,3.9088]
[1752282784950,10.13938,2964.7,2964.6,3.06726052]
[1752282785149,10.13938,2964.7,2964.6,4.81046052]
[1752282785351,22.8839,2965.2,2965.1,1.2551]
[1752282785548,27.10977746,2965.2,2965.1,0.9105]
[1752282785749,27.10977746,2965.2,2964.9,0.90119397]
[1752282785750,2.78089,2965.0,2964.9,4.80999397]
[1752282786049,3.9599,2965.0,2964.9,4.80999397]
[1752282786247,8.18581746,2965.0,2964.9,0.90119397]
[1752282786947,8.18581746,2965.0,2964.9,2.64439397]
[1752282787147,3.55162746,2965.0,2964.9,4.80999397]
[1752282787348,4.74272746,2965.0,2964.9,4.80999397]
[1752282787551,8.18581746,2965.0,2964.9,4.80999397]
[1752282788448,8.18581746,2965.0,2964.9,0.90119397]
[1752282789251,1.86544,2964.9,2964.8,1.2551]
[1752282789451,4.63424,2964.9,2964.8,3.9088]
[1752282789647,8.18586746,2964.9,2964.8,3.9088]
[1752282790649,8.18586746,2964.9,2964.8,1.2551]
[1752282790849,4.63424,2964.8,2964.7,1.19628156]
[1752282791056,2.78096,2964.7,2964.6,2.45138156]
[1752282791256,4.63426,2964.7,2964.6,2.9983]
[1752282791451,8.18588746,2964.7,2964.6,2.9983]
[1752282791652,8.18588746,2964.7,2964.6,3.9088]
[1752282794355,4.63426,2964.7,2964.6,3.9088]
[1752282798151,3.9599,2964.7,2964.6,3.9088]
[1752282798356,4.63426,2964.7,2964.6,3.9088]
[1752282799761,1.86546,2964.7,2964.6,3.9088]
[1752282800358,0.67436,2964.7,2964.6,1.2551]
[1752282800558,0.67436,2964.7,2964.6,2.45711313]
[1752282800955,0.67436,2964.7,2964.6,5.18311313]
[1752282801760,4.64016,2964.7,2964.6,5.18311313]
[1752282802454,8.19178746,2964.7,2964.6,3.9811]
[1752282802656,3.0131,2965.0,2964.9,1.1978]
[1752282802852,17.64771746,2965.0,2964.9,3.9238]
[1752282803657,16.69501746,2965.0,2964.9,3.9238]
[1752282803961,16.69401746,2965.0,2964.9,3.9238]
[1752282804162,17.64671746,2965.0,2964.9,4.8257441]
[1752282804360,2.7966,2965.4,2965.3,2.726]
[1752282804662,1.8434,2965.4,2965.3,5.24589127]
[1752282805360,1.8434,2965.4,2965.3,4.8254877]
[1752282805956,2.7961,2965.4,2965.3,4.8254877]
[1752282806261,1.8434,2965.4,2965.3,4.8254877]
[1752282806655,19.431,2965.6,2965.3,6.14757897]
[1752282806854,10.1272,2965.5,2965.4,3.9238]
[1752282807260,14.84802746,2965.5,2965.4,3.9238]
[1752282807763,14.84802746,2965.5,2965.4,4.8254877]
[1752282808861,14.17382746,2965.5,2965.4,4.8254877]
[1752282809056,14.84800746,2965.5,2965.4,4.8254877]
[1752282809257,17.64460746,2965.5,2965.4,4.8254877]
[1752282810364,17.64460746,2965.5,2965.4,0.9016877]
[1752282810558,1.8434,2965.4,2965.3,0.9016877]
[1752282810760,4.64,2965.4,2965.3,0.9016877]
[1752282810956,4.64,2965.4,2965.1,3.92801313]
[1752282810957,3.9658,2965.0,2964.9,4.38710265]
[1752282811163,3.9658,2964.6,2964.5,3.9238]
[1752282811364,15.41328127,2964.6,2964.5,3.9238]
[1752282811664,18.96490873,2964.6,2964.5,3.9238]
[1752282812662,17.64281746,2964.6,2964.5,3.9238]
[1752282812859,8.19181746,2964.6,2964.5,3.9238]
[1752282813064,17.64281746,2964.6,2964.5,3.9238]
[1752282813970,17.64181746,2964.6,2964.5,3.9238]
[1752282814770,8.19181746,2964.6,2964.5,3.9238]
[1752282814969,17.64181746,2964.6,2964.5,3.9238]
[1752282818471,17.64181746,2964.6,2964.5,1.1978]
[1752282818868,4.64028,2964.2,2964.1,1.808]
[1752282819067,1.84372,2964.0,2963.9,3.9238]
[1752282819268,4.64032,2964.0,2963.9,3.9238]
[1752282820262,10.83583659,2964.0,2963.9,3.9238]
[1752282820467,2.7966,2963.6,2963.4,1.808]
[1752282820663,4.64046,2963.4,2963.3,1.1978]
[1752282820863,1.84388,2963.3,2963.2,1.808]
[1752282821163,4.64048,2963.3,2963.2,1.808]
[1752282821368,4.6405,2963.2,2963.1,3.9238]
[1752282821770,8.19212746,2963.2,2963.1,3.0058]
[1752282821971,8.19212746,2963.2,2963.1,3.9238]
[1752282822768,21.6936,2963.5,2963.2,0.918]
[1752282822973,0.67469,2963.3,2963.2,3.0058]
[1752282823167,0.67469,2963.3,2963.2,3.9238]
[1752282823372,18.897,2963.5,2963.4,1.1978]
[1752282823575,18.897,2963.6,2963.4,3.9065]
[1752282823874,18.897,2963.6,2963.5,3.9281]
[1752282824573,19.57161,2963.6,2963.5,3.9281]
[1752282827967,18.897,2963.6,2963.5,3.9281]
[1752282828378,19.57161,2963.6,2963.5,3.9281]
[1752282829871,18.897,2964.0,2963.5,8.9281]
[1752282830080,22.40622,2964.0,2963.9,1.2194]
[1752282830275,22.40622,2964.0,2963.9,3.9047]
[1752282831575,18.897,2964.0,2963.9,3.9047]
[1752282834481,19.57152,2964.0,2963.9,3.9047]
[1752282834781,18.897,2964.0,2963.9,3.9047]
[1752282834977,19.57152,2964.0,2963.9,3.9047]
[1752282835681,22.40622,2964.0,2963.9,3.9047]
[1752282836083,23.33502,2964.0,2963.9,2.114]
[1752282837577,4.43807,2963.8,2963.7,2.114]
[1752282838481,3.7635,2963.5,2963.4,1.2194]
[1752282838680,4.43814,2963.5,2963.4,3.9047]
[1752282840984,18.89,2963.6,2963.4,5.1074775]
[1752282841186,0.67464,2963.5,2963.4,1.2194]
[1752282841488,18.89,2963.6,2963.4,1.2194]
[1752282841684,21.7217,2963.9,2963.8,2.114]
[1752282841985,22.39624,2963.9,2963.8,3.9047]
[1752282842579,23.32504,2963.9,2963.8,3.9047]
[1752282843492,4.43809,2963.7,2963.6,4.21345621]
[1752282843683,4.43809,2963.7,2963.6,5.10805621]
[1752282844879,4.43809,2963.7,2963.6,3.31735621]
[1752282845083,4.43809,2963.7,2963.6,2.114]
[1752282846489,4.43809,2963.7,2963.6,3.31936001]
[1752282849390,2.8347,2963.7,2963.6,5.11006001]
[1752282849587,1.683,2963.7,2963.6,3.9047]
[1752282849783,18.887,2963.9,2963.6,1.2194]
[1752282849985,19.56156,2963.9,2963.8,1.2194]
[1752282850184,18.887,2963.9,2963.8,5.11099485]
[1752282850390,19.56154,2963.9,2963.8,5.11099485]
[1752282850685,19.56154,2963.9,2963.8,3.9047]
[1752282850886,19.56154,2963.9,2963.8,5.22685714]
[1752282851788,1.683,2964.1,2963.9,1.2194]
[1752282851789,1.1517,2964.0,2963.9,1.2194]
[1752282852088,2.1397431,2965.1,2964.7,3.9047]
[1752282852287,2.1397431,2965.1,2964.7,1.2194]
[1752282852288,4.43784,2964.8,2964.7,1.2194]
[1752282852891,4.43784,2964.8,2964.7,2.114]
[1752282853287,4.43784,2964.8,2964.7,3.31912429]
[1752282854189,4.43784,2964.8,2964.7,2.114]
[1752282855388,3.7635,2964.8,2964.7,2.114]
[1752282855893,3.9561,2965.6,2965.5,3.7234]
[1752282856697,2.9946,2965.6,2965.5,3.7234]
[1752282856995,3.9561,2965.6,2965.5,3.7234]
[1752282857188,3.9561,2965.6,2965.5,2.0486]
[1752282859195,0.9615,2965.9,2965.5,3.7234]
[1752282859395,2.9946,2965.8,2965.7,1.1466]